fUSD/lending_fUSD_20260106
["ID","MTS","AMOUNT","RATE_DAILY","PERIOD"]
[400504353,1767678638665,-500.0,0.0001713,2]
[400504355,1767678638676,-500.0,0.0001713,2]
[400504357,1767678638685,-500.0,0.0001713,2]
[400504359,1767678638694,-500.0,0.0001713,2]
[400504361,1767678638706,-574.95481789,0.0001713,2]
[400504363,1767678638715,-500.0,0.0001713,2]
[400504365,1767678638725,-500.0,0.0001713,2]
[400504367,1767678638735,-558.43229755,0.0001713,2]
[400504369,1767678638744,-500.0,0.0001713,2]
[400504371,1767678638754,-216.04197677,0.00017185,2]
[400504373,1767678638764,-150.0,0.00017216,2]
[400504374,1767678638773,-888.17,0.0001731,2]
[400504376,1767678638783,-1000.0,0.00017393,2]
[400504378,1767678638792,-184.0282291,0.00017395,2]
[400504380,1767678638802,-224.1287593,0.000179,2]
[400504383,1767678638811,-1880.2967,0.000179,2]
[400504385,1767678638821,-1000.0,0.000179,2]
[400504387,1767678638830,-3966.05613503,0.00017931,2]
[400504389,1767678638840,-6299.5718385,0.00017959,2]
[400504390,1767678638849,-504.3199228,0.00017973,2]
[400504392,1767678638860,-500.0,0.00017973,2]
[400504394,1767678638869,-152.38329665,0.00017982,2]
[400504396,1767678638879,-674.98361452,0.0001799,2]
[400504398,1767678638889,-54034.4571886,0.00017999,2]
[400504400,1767678638899,-3850.8035658,0.00017999,2]
[400504402,1767678638908,-500.0,0.00017999,2]
[400504404,1767678638918,-500.0,0.00017999,2]
[400504406,1767678638927,-345.3210989,0.00017999,2]
[400504408,1767678638936,-500.0,0.00017999,2]
[400504410,1767678638946,-500.0,0.00017999,2]
[400504412,1767678638955,-518.84645465,0.00017999,2]
[400504415,1767678638967,-500.0,0.00017999,2]
[400504417,1767678638977,-500.0,0.00017999,2]
[400504419,1767678638986,-522.48563019,0.00017999,2]
[400504421,1767678638996,-500.0,0.00017999,2]
[400504423,1767678639006,-500.0,0.00017999,2]
[400504425,1767678639016,-500.0,0.00017999,2]
[400504427,1767678639026,-517.44328219,0.00017999,2]
[400504429,1767678639035,-260.06429066,0.00017999,2]
[400504431,1767678639045,-323.23631266,0.00017999,2]
[400504433,1767678639055,-446.0455352,0.00017999,2]
[400504435,1767678639065,-500.0,0.00017999,2]
[400504437,1767678639075,-500.0,0.00017999,2]
[400504439,1767678639084,-516.66830415,0.00017999,2]
[400504441,1767678639095,-300.0,0.00017999,2]
[400504443,1767678639104,-1631247.44753014,0.00018,2]
[400504445,1767678639119,-151333.85167997,0.00018,2]
[400504447,1767678639132,-150.0,0.00018,7]
[400504449,1767678639141,-194692.33977451,0.00018,2]
[400504451,1767678639151,-999.0,0.0001804,3]
[400504454,1767678639161,-274.21,0.00018051,2]
[400504456,1767678639171,-894.33,0.00018059,2]
[400504458,1767678639181,-200.0,0.00018359,2]
[400504460,1767678639190,-155.38,0.00018428,2]
[400504462,1767678639199,-300.0,0.00018447,2]
[400504464,1767678639209,-250.0,0.00018447,2]
[400504465,1767678639224,-1000.0,0.00018521,2]
[400504468,1767678639237,-250.0,0.00018571,2]
[400504469,1767678639247,-280.49538585,0.00018677,2]
[400504472,1767678639257,-1680.0,0.00018691,2]
[400504473,1767678639266,-3966.05613503,0.00018777,2]
[400504476,1767678639276,-151.51,0.000188,2]
[400504478,1767678639285,-151.51,0.000188,2]
[400504480,1767678639294,-151.51,0.000188,2]
[400504482,1767678639305,-151.51,0.000188,2]
[400504484,1767678639315,-151.51,0.000188,2]
[400504486,1767678639325,-151.51,0.000188,2]
[400504488,1767678639334,-151.51,0.000188,2]
[400504490,1767678639344,-151.51,0.000188,2]
[400504492,1767678639353,-151.51,0.000188,2]
[400504494,1767678639362,-299.33761981,0.0001881,2]
[400504496,1767678639372,-6299.5718385,0.00018888,2]
[400504498,1767678639382,-164.02,0.00018965,2]
[400504500,1767678639391,-151.51,0.0001899,2]
[400504502,1767678639402,-300.0,0.00018999,2]
[400504504,1767678639412,-1178.8223391,0.00019,2]
[400504505,1767678639421,-97902.19370003,0.00019,2]
[400504507,1767678639430,-357.58810833,0.0001901,7]
[400504509,1767678639439,-500.0,0.00019041,2]
[400504511,1767678639448,-1006.65163513,0.00019068,2]
[400504514,1767678639459,-229.53168465,0.00019082,2]
[400504516,1767678639468,-402.77588387,0.0001917,2]
[400504518,1767678639478,-3006.07249481,0.00019178,2]
[400504520,1767678639488,-20092.67,0.00019178,2]
[400504522,1767678639498,-150.54524676,0.00019178,2]
[400504523,1767678639507,-300.0,0.00019349,2]
[400504525,1767678639518,-1405.0,0.0001935,2]
[400504528,1767678639528,-616.385,0.0001935,2]
[400504530,1767678639539,-1329.0,0.0001935,2]
[400504532,1767678639548,-435.51,0.0001935,2]
[400504533,1767678639558,-1266.0,0.0001935,2]
[400504535,1767678639567,-6549.0,0.0001935,2]
[400504537,1767678639576,-565.0,0.0001935,2]
[400504539,1767678639586,-2435.0,0.0001935,2]
[400504541,1767678639595,-274.21,0.00019421,2]
[400504543,1767678639604,-1000.0,0.00019568,2]
[400504546,1767678639615,-3966.05613503,0.00019623,2]
[400504548,1767678639628,-155.38,0.00019657,2]
[400504550,1767678639638,-6299.5718385,0.00019818,2]
[400504552,1767678639647,-151.51,0.0001989,2]
[400504554,1767678639656,-4913.25056532,0.000199,3]
[400504556,1767678639665,-151.51,0.0001999,2]
[400504558,1767678639677,-25550.35868933,0.0002,2]
[400504560,1767678639688,-758.83798412,0.0002,5]
[400504562,1767678639698,-3088.33,0.0002,2]
[400504563,1767678639709,-3950.0,0.0002,2]
[400504564,1767678639719,-73858.49877962,0.0002,10]
[400504565,1767678639728,-7276.81753015,0.0002,2]
[400504566,1767678639738,-1292.31947838,0.0002,2]
[400504567,1767678639747,-1043.17239724,0.0002,2]
[400504568,1767678639756,-2858.721728,0.0002,2]
[400504569,1767678639764,-12901.87667595,0.0002,2]
[400504570,1767678639774,-500.26212269,0.0002,2]
[400504571,1767678639783,-156.451791,0.0002,2]
[400504572,1767678639791,-151.0,0.0002,2]
[400504573,1767678639801,-151.0,0.0002,2]
[400504574,1767678639810,-156.221145,0.0002,2]
[400504575,1767678639818,-252.707537,0.0002,2]
[400504576,1767678639827,-151.0,0.0002,2]
[400504577,1767678639836,-263.621229,0.0002,2]
[400504578,1767678639845,-378.020033,0.0002,2]
[400504580,1767678639854,-378.020033,0.0002,2]
[400504582,1767678639863,-378.020033,0.0002,2]
[400504584,1767678639872,-441.117051,0.0002,2]
[400504586,1767678639881,-378.020033,0.0002,2]
[400504588,1767678639891,-441.117051,0.0002,2]
[400504590,1767678639900,-441.117051,0.0002,2]
[400504592,1767678639909,-441.117051,0.0002,2]
[400504594,1767678639919,-151.0,0.0002,2]
[400504596,1767678639929,-151.0,0.0002,2]
[400504597,1767678639938,-151.0,0.0002,2]
[400504600,1767678639948,-151.0,0.0002,2]
[400504602,1767678639958,-220.979084,0.0002,2]
[400504603,1767678639967,-151.0,0.0002,2]
[400504605,1767678639976,-2336.943815,0.0002,2]
[400504607,1767678639985,-2336.943815,0.0002,2]
[400504609,1767678639994,-2336.943815,0.0002,2]
[400504611,1767678640004,-204.173232,0.0002,2]
[400504613,1767678640013,-2336.943815,0.0002,2]
[400504615,1767678640022,-204.173232,0.0002,2]
[400504617,1767678640031,-204.173232,0.0002,2]
[400504619,1767678640040,-204.173232,0.0002,2]
[400504622,1767678640050,-481.7358,0.0002,2]
[400504624,1767678640060,-481.7358,0.0002,2]
[400504625,1767678640070,-481.7358,0.0002,2]
[400504627,1767678640079,-481.7358,0.0002,2]
[400504629,1767678640088,-150.0,0.0002,2]
[400504631,1767678640099,-150.0,0.0002,2]
[400504633,1767678640110,-195.08058581,0.0002,2]
[400504635,1767678640122,-758.93,0.00020021,2]
[400504638,1767678640131,-1005.07908299,0.000201,2]
[400504640,1767678640141,-770.82279925,0.0002017,2]
[400504642,1767678640151,-400.0,0.0002017,2]
[400504644,1767678640161,-400.0,0.0002017,2]
[400504646,1767678640171,-859.2304163,0.00020279,2]
[400504648,1767678640180,-12056.717086,0.00020279,2]
[400504650,1767678640190,-758.93,0.00020295,2]
[400504652,1767678640199,-3966.05613503,0.00020469,2]
[400504654,1767678640208,-2351.0,0.00020516,2]
[400504656,1767678640217,-4829.0,0.00020567,2]
[400504658,1767678640227,-549.01,0.00020569,2]
[400504661,1767678640236,-168.0,0.00020617,2]
[400504663,1767678640246,-22616.80743394,0.000207,2]
[400504665,1767678640256,-4829.0,0.00020725,2]
[400504667,1767678640265,-6299.5718385,0.00020747,2]
[400504669,1767678640275,-4829.0,0.00020782,2]
[400504671,1767678640285,-191.7202204,0.00020787,2]
[400504673,1767678640295,-2690.2172142,0.00020787,2]
[400504675,1767678640304,-400.0,0.0002087,2]
[400504677,1767678640314,-400.0,0.0002087,2]
[400504679,1767678640324,-400.0,0.0002087,2]
[400504681,1767678640335,-155.38,0.00020885,2]
[400504683,1767678640344,-151.51,0.0002089,2]
[400504685,1767678640353,-51873.58313577,0.000209,30]
[400504687,1767678640363,-5800.0,0.000209,2]
[400504689,1767678640372,-168.0,0.00020923,2]
[400504691,1767678640382,-4829.0,0.00020923,2]
[400504693,1767678640391,-430.98829195,0.00020941,2]
[400504696,1767678640401,-150.0,0.00020973,2]
[400504698,1767678640411,-151.51,0.0002098,2]
[400504699,1767678640420,-151.51,0.0002098,2]
[400504702,1767678640430,-500.0,0.0002098,3]
[400504704,1767678640440,-226822.03547001,0.0002099,2]
[400504706,1767678640449,-176.914862,0.0002099,2]
[400504708,1767678640458,-378.020033,0.0002099,2]
[400504710,1767678640468,-378.020033,0.0002099,2]
[400504712,1767678640477,-378.020033,0.0002099,2]
[400504714,1767678640487,-441.117051,0.0002099,2]
[400504716,1767678640496,-378.020033,0.0002099,2]
[400504718,1767678640505,-441.117051,0.0002099,2]
[400504720,1767678640515,-441.117051,0.0002099,2]
[400504722,1767678640524,-441.117051,0.0002099,2]
[400504724,1767678640533,-151.0,0.0002099,2]
[400504725,1767678640543,-151.0,0.0002099,2]
[400504727,1767678640552,-151.0,0.0002099,2]
[400504729,1767678640561,-151.0,0.0002099,2]
[400504731,1767678640571,-168.166784,0.0002099,2]
[400504733,1767678640580,-2336.943815,0.0002099,2]
[400504735,1767678640591,-2336.943815,0.0002099,2]
[400504758,1767678640793,-2336.943815,0.0002099,2]
[400504761,1767678640803,-204.173232,0.0002099,2]
[400504763,1767678640812,-2336.943815,0.0002099,2]
[400504765,1767678640822,-204.173232,0.0002099,2]
[400504767,1767678640831,-204.173232,0.0002099,2]
[400504769,1767678640840,-204.173232,0.0002099,2]
[400504771,1767678640849,-481.7358,0.0002099,2]
[400504773,1767678640857,-481.7358,0.0002099,2]
[400504775,1767678640866,-481.7358,0.0002099,2]
[400504777,1767678640875,-481.7358,0.0002099,2]
[400504779,1767678640884,-20000.0,0.00021,2]
[400504781,1767678640893,-1191.16510258,0.00021,2]
[400504783,1767678640902,-196.61170439,0.00021,2]
[400504785,1767678640911,-999.01,0.00021,15]
[400504787,1767678640920,-168.0,0.00021006,2]
[400504789,1767678640929,-12491.06,0.00021068,2]
[400504790,1767678640938,-4829.0,0.00021105,2]
[400504792,1767678640947,-168.0,0.00021184,2]
[400504794,1767678640956,-168.0,0.00021214,2]
[400504797,1767678640965,-168.0,0.0002122,2]
[400504799,1767678640974,-4829.0,0.0002122,2]
[400504801,1767678640983,-168.0,0.00021228,2]
[400504803,1767678640992,-168.0,0.00021307,2]
[400504804,1767678641001,-3966.05613503,0.00021316,2]
[400504807,1767678641011,-168.0,0.00021322,2]
[400504809,1767678641020,-168.0,0.00021355,2]
[400504810,1767678641029,-6366.1,0.0002137,2]
[400504813,1767678641039,-168.0,0.00021383,2]
[400504814,1767678641048,-4829.0,0.00021482,2]
[400504817,1767678641057,-151.51,0.0002149,2]
[400504819,1767678641066,-57438.65090699,0.000215,2]
[400504820,1767678641075,-221.7670119,0.000215,2]
[400504822,1767678641084,-250.0,0.00021521,2]
[400504824,1767678641093,-280.4953858,0.00021522,2]
[400504826,1767678641102,-167.39433605,0.00021642,2]
[400504828,1767678641110,-6299.5718385,0.00021676,2]
[400504831,1767678641120,-1000.0,0.00021742,2]
[400504833,1767678641129,-151.0,0.00021918,2]
[400504835,1767678641137,-151.0,0.00021918,2]
[400504836,1767678641147,-800.0,0.00021918,2]
[400504838,1767678641156,-800.0,0.00021918,2]
[400504840,1767678641165,-800.0,0.00021918,2]
[400504842,1767678641174,-800.0,0.00021918,2]
[400504844,1767678641183,-800.0,0.00021918,2]
[400504846,1767678641191,-800.0,0.00021918,2]
[400504848,1767678641201,-800.0,0.00021918,2]
[400504851,1767678641211,-800.0,0.00021918,2]
[400504853,1767678641221,-150.0,0.00021918,2]
[400504855,1767678641230,-150.0,0.00021918,2]
[400504857,1767678641240,-168.0,0.00021957,2]
[400504859,1767678641249,-152.0,0.00021966,3]
[400504861,1767678641258,-175.84813518,0.00021973,2]
[400504863,1767678641267,-150.0,0.00021973,2]
[400504865,1767678641277,-151.51,0.0002199,2]
[400504867,1767678641285,-7713.73,0.00022,7]
[400504869,1767678641294,-89738.95,0.00022,7]
[400504870,1767678641304,-163.53,0.00022,2]
[400504873,1767678641314,-164.02,0.00022029,2]
[400504875,1767678641323,-250.0,0.00022052,2]
[400504877,1767678641333,-168.0,0.00022065,2]
[400504878,1767678641342,-1029.0,0.00022067,2]
[400504881,1767678641352,-350.0,0.00022068,2]
[400504883,1767678641361,-400.0,0.0002207,2]
[400504884,1767678641371,-400.0,0.0002207,2]
[400504887,1767678641380,-189.52138732,0.000221,2]
[400504888,1767678641389,-200.0,0.000221,2]
[400504890,1767678641399,-239.86281191,0.0002211,2]
[400504893,1767678641410,-155.38,0.00022114,2]
[400504895,1767678641419,-3966.05613503,0.00022162,2]
[400504897,1767678641428,-170.84,0.00022254,2]
[400504899,1767678641437,-1295.021,0.0002235,2]
[400504901,1767678641446,-1329.0,0.0002235,2]
[400504902,1767678641455,-1266.0,0.0002235,2]
[400504904,1767678641464,-6549.0,0.0002235,2]
[400504907,1767678641473,-150.313,0.0002235,2]
[400504909,1767678641483,-2435.0,0.0002235,2]
[400504911,1767678641492,-300.0,0.000224,2]
[400504913,1767678641502,-978.0,0.000224,2]
[400504915,1767678641511,-306.0,0.000224,2]
[400504917,1767678641521,-168.0,0.00022407,2]
[400504918,1767678641530,-168.0,0.00022424,2]
[400504920,1767678641539,-168.0,0.00022462,2]
[400504922,1767678641549,-151.51,0.0002249,2]
[400504925,1767678641558,-2900.0,0.000225,15]
[400504927,1767678641568,-35434.58640439,0.000225,2]
[400504929,1767678641577,-3292.0,0.00022518,2]
[400504931,1767678641586,-168.0,0.00022545,2]
[400504933,1767678641597,-9999.99,0.00022562,2]
[400504935,1767678641606,-9999.99,0.00022562,2]
[400504936,1767678641615,-150.99,0.00022562,2]
[400504939,1767678641628,-999.99,0.00022562,2]
[400504940,1767678641638,-168.0,0.00022598,2]
[400504942,1767678641647,-6299.5718385,0.00022605,2]
[400504944,1767678641656,-450.0,0.00022616,2]
[400504946,1767678641667,-522.3260812,0.0002271,2]
[400504949,1767678641676,-152.0,0.00022976,4]
[400504950,1767678641686,-151.51,0.0002299,2]
[400504952,1767678641695,-151.51,0.00022998,2]
[400504954,1767678641706,-1000.0,0.00023,14]
[400504956,1767678641715,-181533.96063649,0.00023,2]
[400504958,1767678641725,-1006.14105963,0.00023,2]
[400504960,1767678641735,-2000.0,0.00023,2]
[400504962,1767678641744,-151.0,0.00023,2]
[400504964,1767678641754,-378.020033,0.00023,2]
[400504966,1767678641763,-378.020033,0.00023,2]
[400504968,1767678641772,-378.020033,0.00023,2]
[400504970,1767678641781,-441.117051,0.00023,2]
[400504972,1767678641790,-378.020033,0.00023,2]
[400504974,1767678641799,-441.117051,0.00023,2]
[400504976,1767678641809,-441.117051,0.00023,2]
[400504978,1767678641818,-441.117051,0.00023,2]
[400504980,1767678641828,-151.0,0.00023,2]
[400504982,1767678641837,-151.0,0.00023,2]
[400504984,1767678641846,-151.0,0.00023,2]
[400504986,1767678641856,-182.735076,0.00023,2]
[400504988,1767678641865,-2336.943815,0.00023,2]
[400504990,1767678641874,-2336.943815,0.00023,2]
[400504992,1767678641884,-2336.943815,0.00023,2]
[400504994,1767678641893,-204.173232,0.00023,2]
[400504996,1767678641903,-2336.943815,0.00023,2]
[400504998,1767678641912,-204.173232,0.00023,2]
[400505000,1767678641923,-204.173232,0.00023,2]
[400505002,1767678641933,-204.173232,0.00023,2]
[400505004,1767678641942,-481.7358,0.00023,2]
[400505006,1767678641951,-481.7358,0.00023,2]
[400505008,1767678641961,-481.7358,0.00023,2]
[400505010,1767678641970,-481.7358,0.00023,2]
[400505012,1767678641979,-3966.05613503,0.00023008,2]
[400505014,1767678641988,-500.0,0.00023087,2]
[400505016,1767678641997,-500.0,0.00023088,2]
[400505018,1767678642006,-500.0,0.00023089,2]
[400505020,1767678642015,-499.9999,0.0002309,2]
[400505022,1767678642024,-2581.76674438,0.000231,2]
[400505024,1767678642035,-164.02,0.00023159,2]
[400505026,1767678642044,-550.0,0.00023164,2]
[400505028,1767678642053,-198.51288907,0.000232,2]
[400505030,1767678642062,-630.02,0.00023271,2]
[400505032,1767678642071,-1000.0,0.00023288,2]
[400505034,1767678642080,-200.0,0.000235,2]
[400505036,1767678642090,-170.84,0.00023527,2]
[400505038,1767678642100,-6299.5718385,0.00023535,2]
[400505039,1767678642109,-1000.0,0.00023562,2]
[400505041,1767678642118,-650.0,0.00023712,2]
[400505043,1767678642127,-173.08990061,0.0002376,4]
[400505045,1767678642136,-245.35927834,0.0002376,4]
[400505047,1767678642145,-250.74529518,0.0002376,4]
[400505050,1767678642154,-150.0,0.0002376,4]
[400505052,1767678642164,-150.0,0.0002376,4]
[400505053,1767678642173,-223.93839011,0.0002376,4]
[400505056,1767678642182,-150.0,0.0002376,4]
[400505057,1767678642192,-150.0,0.0002376,4]
[400505059,1767678642201,-150.0,0.0002376,4]
[400505061,1767678642209,-150.0,0.0002376,4]
[400505063,1767678642219,-432.3385837,0.0002376,4]
[400505065,1767678642228,-197.30189059,0.0002376,4]
[400505067,1767678642237,-150.0,0.0002376,4]
[400505069,1767678642247,-150.0,0.0002376,4]
[400505071,1767678642256,-150.0,0.0002376,4]
[400505073,1767678642265,-150.0,0.0002376,4]
[400505075,1767678642274,-159.2619942,0.0002376,4]
[400505077,1767678642284,-173.08990061,0.00023787,4]
[400505079,1767678642293,-245.35927834,0.00023787,4]
[400505081,1767678642301,-250.74529518,0.00023787,4]
[400505083,1767678642312,-223.93839011,0.00023787,4]
[400505085,1767678642321,-432.3385837,0.00023787,4]
[400505087,1767678642331,-197.30189059,0.00023787,4]
[400505089,1767678642340,-159.2619942,0.00023787,4]
[400505091,1767678642349,-150.0,0.0002381,4]
[400505093,1767678642358,-173.08990061,0.00023813,4]
[400505095,1767678642368,-245.35927834,0.00023813,4]
[400505097,1767678642377,-250.74529518,0.00023813,4]
[400505099,1767678642386,-223.93839011,0.00023813,4]
[400505101,1767678642395,-432.3385837,0.00023813,4]
[400505103,1767678642404,-197.30189059,0.00023813,4]
[400505105,1767678642414,-159.2619942,0.00023813,4]
[400505107,1767678642423,-150.0,0.00023831,4]
[400505109,1767678642432,-1000.0,0.00023836,2]
[400505111,1767678642441,-173.08990061,0.0002384,4]
[400505113,1767678642450,-245.35927834,0.0002384,4]
[400505115,1767678642459,-250.74529518,0.0002384,4]
[400505117,1767678642468,-223.93839011,0.0002384,4]
[400505119,1767678642477,-432.3385837,0.0002384,4]
[400505121,1767678642486,-197.30189059,0.0002384,4]
[400505123,1767678642495,-159.2619942,0.0002384,4]
[400505125,1767678642503,-3966.05613503,0.00023854,2]
[400505127,1767678642512,-150.0,0.0002386,4]
[400505129,1767678642522,-150.0,0.00023862,4]
[400505131,1767678642531,-173.08990061,0.00023867,4]
[400505132,1767678642540,-245.35927834,0.00023867,4]
[400505134,1767678642548,-250.74529518,0.00023867,4]
[400505136,1767678642557,-223.93839011,0.00023867,4]
[400505138,1767678642566,-432.3385837,0.00023867,4]
[400505140,1767678642575,-197.30189059,0.00023867,4]
[400505142,1767678642585,-159.2619942,0.00023867,4]
[400505144,1767678642594,-173.08990061,0.00023893,4]
[400505146,1767678642603,-245.35927834,0.00023893,4]
[400505148,1767678642613,-250.74529518,0.00023893,4]
[400505150,1767678642623,-223.93839011,0.00023893,4]
[400505152,1767678642635,-432.3385837,0.00023893,4]
[400505154,1767678642645,-197.30189059,0.00023893,4]
[400505156,1767678642654,-159.2619942,0.00023893,4]
[400505158,1767678642663,-150.0,0.00023903,4]
[400505160,1767678642672,-150.0,0.00023909,4]
[400505162,1767678642682,-1000.0,0.00023916,2]
[400505163,1767678642691,-173.08990061,0.0002392,4]
[400505165,1767678642701,-245.35927834,0.0002392,4]
[400505168,1767678642712,-250.74529518,0.0002392,4]
[400505170,1767678642721,-223.93839011,0.0002392,4]
[400505172,1767678642730,-432.3385837,0.0002392,4]
[400505174,1767678642739,-197.30189059,0.0002392,4]
[400505176,1767678642749,-159.2619942,0.0002392,4]
[400505178,1767678642758,-173.08990061,0.00023947,4]
[400505180,1767678642767,-245.35927834,0.00023947,4]
[400505181,1767678642776,-250.74529518,0.00023947,4]
[400505183,1767678642786,-223.93839011,0.00023947,4]
[400505185,1767678642795,-432.3385837,0.00023947,4]
[400505187,1767678642804,-197.30189059,0.00023947,4]
[400505188,1767678642813,-159.2619942,0.00023947,4]
[400505189,1767678642822,-150.0,0.00023959,4]
[400505190,1767678642831,-150.0,0.00023963,4]
[400505191,1767678642839,-173.08990061,0.00023973,4]
[400505192,1767678642848,-245.35927834,0.00023973,4]
[400505193,1767678642857,-250.74529518,0.00023973,4]
[400505194,1767678642866,-223.93839011,0.00023973,4]
[400505195,1767678642875,-432.3385837,0.00023973,4]
[400505196,1767678642883,-197.30189059,0.00023973,4]
[400505197,1767678642892,-159.2619942,0.00023973,4]
[400505198,1767678642901,-150.0,0.00023974,4]
[400505199,1767678642910,-150.0,0.0002398,4]
[400505201,1767678642919,-152.0,0.00023987,5]
[400505203,1767678642927,-1019.54915216,0.00024,2]
[400505205,1767678642936,-3600.0,0.00024,2]
[400505207,1767678642946,-1232.91707299,0.00024,2]
[400505209,1767678642955,-173.08990061,0.00024,4]
[400505211,1767678642964,-245.35927834,0.00024,4]
[400505213,1767678642973,-250.74529518,0.00024,4]
[400505215,1767678642982,-223.93839011,0.00024,4]
[400505217,1767678642991,-432.3385837,0.00024,4]
[400505219,1767678643000,-197.30189059,0.00024,4]
[400505221,1767678643010,-159.2619942,0.00024,4]
[400505223,1767678643019,-150.0,0.00024009,4]
[400505225,1767678643029,-173.08990061,0.00024027,4]
[400505227,1767678643038,-245.35927834,0.00024027,4]
[400505229,1767678643047,-250.74529518,0.00024027,4]
[400505231,1767678643056,-223.93839011,0.00024027,4]
[400505233,1767678643065,-432.3385837,0.00024027,4]
[400505235,1767678643074,-197.30189059,0.00024027,4]
[400505237,1767678643083,-159.2619942,0.00024027,4]
[400505239,1767678643092,-150.0,0.00024045,4]
[400505241,1767678643101,-166.66,0.00024051,30]
[400505243,1767678643110,-173.08990061,0.00024053,4]
[400505245,1767678643118,-245.35927834,0.00024053,4]
[400505247,1767678643127,-250.74529518,0.00024053,4]
[400505249,1767678643136,-223.93839011,0.00024053,4]
[400505251,1767678643145,-432.3385837,0.00024053,4]
[400505253,1767678643155,-197.30189059,0.00024053,4]
[400505255,1767678643166,-159.2619942,0.00024053,4]
[400505256,1767678643175,-150.0,0.00024059,4]
[400505258,1767678643185,-150.0,0.00024065,4]
[400505260,1767678643195,-173.08990061,0.0002408,4]
[400505262,1767678643204,-245.35927834,0.0002408,4]
[400505264,1767678643213,-250.74529518,0.0002408,4]
[400505267,1767678643223,-223.93839011,0.0002408,4]
[400505268,1767678643232,-432.3385837,0.0002408,4]
[400505271,1767678643241,-197.30189059,0.0002408,4]
[400505272,1767678643251,-159.2619942,0.0002408,4]
[400505275,1767678643260,-89738.95,0.000241,7]
[400505277,1767678643270,-173.08990061,0.00024107,4]
[400505279,1767678643279,-245.35927834,0.00024107,4]
[400505281,1767678643288,-250.74529518,0.00024107,4]
[400505283,1767678643297,-223.93839011,0.00024107,4]
[400505285,1767678643307,-432.3385837,0.00024107,4]
[400505286,1767678643316,-197.30189059,0.00024107,4]
[400505289,1767678643327,-159.2619942,0.00024107,4]
[400505290,1767678643337,-150.0,0.00024109,4]
[400505293,1767678643346,-1000.0,0.0002411,2]
[400505295,1767678643355,-150.0,0.00024117,4]
[400505296,1767678643365,-173.08990061,0.00024133,4]
[400505298,1767678643375,-245.35927834,0.00024133,4]
[400505300,1767678643384,-250.74529518,0.00024133,4]
[400505302,1767678643393,-223.93839011,0.00024133,4]
[400505305,1767678643403,-432.3385837,0.00024133,4]
[400505306,1767678643412,-197.30189059,0.00024133,4]
[400505308,1767678643421,-159.2619942,0.00024133,4]
[400505310,1767678643431,-150.0,0.00024137,4]
[400505312,1767678643440,-150.0,0.00024137,4]
[400505314,1767678643448,-150.0,0.00024158,4]
[400505316,1767678643458,-173.08990061,0.0002416,4]
[400505318,1767678643466,-245.35927834,0.0002416,4]
[400505320,1767678643476,-250.74529518,0.0002416,4]
[400505322,1767678643486,-223.93839011,0.0002416,4]
[400505324,1767678643495,-432.3385837,0.0002416,4]
[400505326,1767678643504,-197.30189059,0.0002416,4]
[400505328,1767678643513,-159.2619942,0.0002416,4]
[400505330,1767678643523,-150.0,0.00024166,4]
[400505332,1767678643532,-173.08990061,0.00024187,4]
[400505334,1767678643541,-245.35927834,0.00024187,4]
[400505336,1767678643550,-250.74529518,0.00024187,4]
[400505338,1767678643560,-223.93839011,0.00024187,4]
[400505340,1767678643569,-432.3385837,0.00024187,4]
[400505342,1767678643579,-197.30189059,0.00024187,4]